bitfinex/quotes_SOLUSD_20251031
["timestamp","ask_amount","ask_price","bid_price","bid_amount"]
[1761945169727,0.2,187.29,187.28,12.69607396]
[1761945169932,0.2,187.29,187.28,22.48490165]
[1761945170123,0.2,187.29,187.28,22.76922479]
[1761945171850,3.94406356,187.35,187.29,10.07315083]
[1761945172017,0.68,187.36,187.34,3.34323775]
[1761945172220,0.68,187.36,187.35,3.34323775]
[1761945172452,4.62220129,187.36,187.35,3.34323775]
[1761945173327,4.62220129,187.36,187.34,3.34323775]
[1761945173530,0.68,187.35,187.34,3.34323775]
[1761945177430,0.68,187.35,187.34,8.68112608]
[1761945177748,20.592,187.39,187.34,8.68112608]
[1761945177948,0.68,187.38,187.35,3.34323775]
[1761945178720,4.61430837,187.38,187.35,3.34323775]
[1761945179146,21.272,187.37,187.35,3.34323775]
[1761945179528,0.68,187.36,187.35,3.34323775]
[1761945179936,0.68,187.36,187.34,8.68112608]
[1761945180825,0.68,187.36,187.35,3.34323775]
[1761945181270,0.68,187.36,187.34,5.33788833]
[1761945181561,0.68,187.36,187.35,8.68084116]
[1761945182156,0.68,187.36,187.35,3.34323775]
[1761945182663,0.68,187.36,187.34,3.34323775]
[1761945182832,0.68,187.36,187.33,5.33815029]
[1761945183026,0.68,187.36,187.33,9.39138804]
[1761945183532,0.68,187.36,187.33,8.68138804]
[1761945184855,0.68,187.36,187.33,9.39138804]
[1761945185233,0.68,187.36,187.33,8.68138804]
[1761945185437,0.68,187.36,187.32,15.74160719]
[1761945185628,0.68,187.36,187.32,19.79484494]
[1761945185830,0.68,187.36,187.33,3.34323775]
[1761945187641,0.68,187.36,187.33,8.68136984]
[1761945188435,0.68,187.36,187.33,3.34323775]
[1761945188639,0.68,187.36,187.32,10.40319963]
[1761945188849,4.02323775,187.36,187.32,10.40319963]
[1761945189050,0.68,187.36,187.32,10.40319963]
[1761945189257,0.68,187.35,187.32,10.40319963]
[1761945189569,0.68,187.35,187.32,19.0848947]
[1761945189773,0.68,187.35,187.33,3.34323775]
[1761945190474,0.68,187.35,187.32,19.0848947]
[1761945191670,3.34323775,187.33,187.32,10.40319963]
[1761945192136,4.02323775,187.33,187.32,10.40319963]
[1761945192642,0.68,187.33,187.32,10.40319963]
[1761945192961,20.592,187.36,187.32,10.40319963]
[1761945193163,20.592,187.36,187.33,3.34323775]
[1761945193351,0.68,187.35,187.32,19.08486697]
[1761945194673,0.68,187.35,187.32,10.40319963]
[1761945194872,3.34323775,187.34,187.32,10.40319963]
[1761945195238,0.68,187.33,187.32,10.40319963]
[1761945198468,0.68,187.33,187.32,15.74165788]
[1761945199474,3.34323775,187.35,187.32,15.74165788]
[1761945199660,0.71,187.34,187.32,15.74165788]
[1761945200046,23.12790242,187.42,187.32,15.74165788]
[1761945200047,3.34323775,187.39,187.33,4.04323775]
[1761945200365,3.93570788,187.38,187.34,3.34323775]
[1761945200572,0.71,187.37,187.34,3.34323775]
[1761945201068,0.71,187.37,187.33,0.7]
[1761945201274,0.71,187.37,187.34,3.34323775]
[1761945202554,0.71,187.37,187.34,5.33788833]
[1761945203369,3.34323775,187.35,187.32,10.40319963]
[1761945203554,3.34323775,187.33,187.32,10.40319963]
[1761945203760,7.27955103,187.33,187.32,10.40319963]
[1761945204070,7.98955103,187.33,187.32,10.40319963]
[1761945204586,13.3277243,187.33,187.32,10.40319963]
[1761945205063,7.98955103,187.33,187.32,10.40319963]
[1761945205265,13.3277243,187.33,187.32,10.40319963]
[1761945209549,23.40087513,187.33,187.32,10.40319963]
[1761945209744,20.592,187.29,187.2,0.71]
[1761945209986,3.34323775,187.24,187.19,5.34216571]
[1761945210290,3.34323775,187.24,187.2,0.71]
[1761945210494,0.66,187.26,187.2,0.71]
[1761945210651,3.34323775,187.24,187.2,0.71]
[1761945211153,3.34323775,187.24,187.21,5.341595]
[1761945211681,0.66,187.26,187.21,5.341595]
[1761945211975,4.00323775,187.26,187.22,0.71]
[1761945213175,4.00323775,187.26,187.23,5.3410244]
[1761945213764,3.34323775,187.26,187.22,6.05129064]
[1761945214078,0.66,187.25,187.22,6.05129064]
[1761945215971,3.34323775,187.26,187.22,6.05129064]
[1761945215972,4.00323775,187.26,187.22,0.71]
[1761945216148,20.592,187.29,187.21,5.341595]
[1761945216149,4.00323775,187.25,187.21,5.341595]
[1761945216345,3.34323775,187.25,187.21,5.341595]
[1761945216549,3.34323775,187.25,187.21,6.051595]
[1761945216764,4.00323775,187.25,187.21,6.051595]
[1761945217568,4.00323775,187.24,187.21,6.051595]
[1761945217780,4.00323775,187.24,187.17,6.0510244]
[1761945217781,3.34323775,187.22,187.17,6.0510244]
[1761945217975,3.34323775,187.21,187.18,5.34239647]
[1761945218158,3.34323775,187.21,187.18,6.05239647]
[1761945218776,0.66,187.23,187.18,6.05239647]
[1761945218777,3.34323775,187.22,187.18,6.05239647]
[1761945219259,4.00323775,187.22,187.18,6.05239647]
[1761945219478,0.66,187.22,187.18,6.05239647]
[1761945219777,0.66,187.27,187.21,3.34323775]
[1761945219959,0.66,187.27,187.24,3.34323775]
[1761945220375,0.66,187.29,187.25,3.34323775]
[1761945220577,21.252,187.28,187.24,4.05323775]
[1761945221668,21.252,187.28,187.24,0.71]
[1761945221877,21.252,187.28,187.24,4.05323775]
[1761945224475,21.252,187.28,187.24,9.39391451]
[1761945225182,0.66,187.27,187.22,0.71]
[1761945225401,2.14105485,187.26,187.21,2.14105485]
[1761945225699,2.14105485,187.26,187.21,2.85105485]
[1761945225916,2.14105485,187.26,187.22,0.71]
[1761945225917,0.66,187.26,187.22,0.71]
[1761945227286,0.66,187.26,187.22,6.05106048]
[1761945227603,0.66,187.26,187.23,2.14105485]
[1761945229110,0.66,187.26,187.22,8.19211533]
[1761945230506,21.252,187.28,187.23,2.85105485]
[1761945230910,0.66,187.27,187.23,2.85105485]
[1761945232502,0.66,187.27,187.22,7.48213676]
[1761945232908,0.66,187.27,187.22,8.19213676]
[1761945233712,0.66,187.27,187.22,6.05108191]
[1761945234101,0.66,187.27,187.22,8.19213676]
[1761945235619,0.66,187.27,187.23,7.48186848]
[1761945236426,0.66,187.27,187.23,8.16186848]
[1761945240200,0.66,187.27,187.23,5.34081363]
[1761945240420,0.66,187.27,187.22,7.48230437]
[1761945240828,0.66,187.27,187.23,2.82105485]
[1761945241003,0.66,187.27,187.23,0.68]
[1761945241613,0.66,187.27,187.22,0.68]
[1761945242023,0.66,187.27,187.21,2.14105485]
[1761945242206,0.66,187.27,187.23,2.82105485]
[1761945242527,0.66,187.27,187.23,0.68]
[1761945242704,0.66,187.27,187.22,2.14105485]
[1761945242898,0.66,187.27,187.22,2.82105485]
[1761945243506,0.66,187.27,187.22,8.16219332]
[1761945244053,0.66,187.27,187.23,2.82105485]
[1761945244407,0.66,187.27,187.22,5.34113847]
[1761945244605,0.66,187.27,187.23,2.14105485]
[1761945245116,4.5970603,187.27,187.23,2.14105485]
[1761945245429,20.592,187.24,187.17,0.68]
[1761945245747,2.14105485,187.23,187.17,0.68]
[1761945245905,2.84105485,187.23,187.17,2.82105485]
[1761945246216,0.7,187.22,187.18,0.68]
[1761945246409,0.7,187.22,187.16,0.68]
[1761945246609,21.292,187.22,187.16,0.68]
[1761945246823,21.292,187.22,187.16,2.82105485]
[1761945247028,6.78115264,187.21,187.14,2.82105485]
[1761945247201,3.94168652,187.2,187.16,2.14105485]
[1761945247401,20.592,187.21,187.16,5.34302201]
[1761945247615,0.7,187.2,187.17,2.14105485]
[1761945247916,2.14105485,187.24,187.16,5.34302201]
[1761945248124,21.292,187.21,187.17,0.68]
[1761945248323,21.292,187.21,187.17,2.82105485]
[1761945248525,0.7,187.2,187.16,8.16407686]
[1761945248829,6.08617133,187.19,187.12,2.14105485]
[1761945249033,0.7,187.2,187.11,5.34444978]
[1761945249034,2.84105485,187.2,187.13,2.82105485]
[1761945249243,4.6450259,187.19,187.13,0.68]
[1761945249406,4.6450259,187.19,187.13,2.82105485]
[1761945249607,2.84105485,187.18,187.12,5.34414877]
[1761945249830,0.7,187.18,187.12,7.48520362]
[1761945250027,0.7,187.17,187.12,8.16520362]
[1761945250635,0.7,187.17,187.11,5.34443699]
[1761945250833,2.84105485,187.17,187.1,8.26575209]
[1761945251044,22.73305485,187.16,187.1,0.1]
[1761945251225,23.43305485,187.16,187.1,0.1]
[1761945251407,0.7,187.15,187.1,0.1]
[1761945251837,0.7,187.15,187.1,0.78]
[1761945252134,3.93996107,187.14,187.11,2.14105485]
[1761945252320,3.93996107,187.13,187.1,8.26570467]
[1761945252514,0.7,187.14,187.1,8.26570467]
[1761945252731,3.93881563,187.13,187.1,8.26570467]
[1761945253034,20.592,187.15,187.11,0.68]
[1761945253236,4.63933432,187.14,187.1,8.26570467]
[1761945253409,2.14105485,187.17,187.11,0.68]
[1761945253609,20.592,187.15,187.1,7.58570467]
[1761945253817,20.592,187.15,187.1,8.26570467]
[1761945253818,3.93825296,187.14,187.1,8.26570467]
[1761945254112,21.292,187.15,187.11,0.68]
[1761945254312,3.93649226,187.14,187.11,0.68]
[1761945254636,0.7,187.14,187.1,5.44464982]
[1761945254815,0.7,187.13,187.1,5.44464982]
[1761945255013,0.7,187.13,187.1,6.12464982]
[1761945255323,3.93494404,187.14,187.1,6.12464982]
[1761945255509,2.14105485,187.13,187.1,0.1]
[1761945255710,2.14105485,187.12,187.1,0.1]
[1761945255957,2.14105485,187.11,187.1,0.1]
[1761945256243,2.84105485,187.11,187.1,0.1]
[1761945256412,0.7,187.11,187.1,0.1]
[1761945256613,25.22343698,187.11,187.1,0.1]
[1761945257716,24.52343698,187.11,187.1,0.1]
[1761945257908,21.292,187.11,187.1,0.1]
[1761945259611,23.01737799,187.14,187.1,0.1]
[1761945259817,4.6225648,187.13,187.1,0.1]
[1761945260017,20.592,187.11,187.1,0.1]
[1761945260424,27.35353788,187.11,187.1,0.1]
[1761945261018,32.69798766,187.11,187.1,0.1]
[1761945262841,27.63786102,187.11,187.1,0.1]
[1761945264820,35.12336565,187.11,187.1,0.1]
[1761945265027,44.91219334,187.11,187.1,0.1]
[1761945265544,44.91219334,187.11,187.08,0.1]
[1761945265545,30.38082769,187.09,187.08,0.1]
[1761945265721,30.38082769,187.09,186.97,0.1]
[1761945265722,20.592,187.01,186.97,0.1]
[1761945266034,2.14105485,186.99,186.97,0.1]
[1761945266442,7.04786557,186.99,186.97,0.1]
[1761945266749,12.39574513,186.99,186.97,0.1]
[1761945266919,9.25503902,186.99,186.97,0.1]
[1761945267338,7.04786557,186.99,186.97,0.1]
[1761945267745,25.21448758,186.99,186.97,0.1]
[1761945268117,21.312,186.99,186.97,0.1]
[1761945268438,23.45305485,186.99,186.97,0.1]
[1761945269521,20.592,186.99,186.97,0.1]
[1761945269746,23.45305485,186.99,186.97,0.1]
[1761945271117,27.34138064,186.99,186.97,0.1]
[1761945271647,25.20032579,186.99,186.97,0.1]
[1761945271847,27.34138064,186.99,186.97,0.1]
[1761945275054,32.97358334,186.99,186.97,0.1]
[1761945275631,10.07315083,186.98,186.97,0.1]
[1761945275854,10.07315083,186.98,186.95,0.1]
[1761945275855,37.41453147,186.98,186.95,0.1]
[1761945276156,2.42537799,186.96,186.95,0.1]
[1761945276328,6.31370378,186.96,186.95,0.1]
[1761945276529,7.03370378,186.96,186.95,0.1]
[1761945276723,16.82253147,186.96,186.95,0.1]
[1761945277147,4.60832579,186.96,186.95,0.1]
[1761945277353,6.89154221,186.96,186.95,0.1]
[1761945277530,12.38244147,186.96,186.95,0.1]
[1761945277848,6.02938064,186.96,186.95,0.1]
[1761945278043,3.88832579,186.96,186.95,0.1]
[1761945278246,22.73305485,186.97,186.95,0.1]
[1761945278956,2.14105485,186.96,186.95,0.1]
[1761945279152,12.08266439,186.96,186.95,0.1]
[1761945279530,22.15581522,186.96,186.95,0.1]
[1761945280852,32.84124598,186.96,186.95,0.1]
[1761945281154,22.15581522,186.96,186.95,0.1]
[1761945281340,32.84124598,186.96,186.95,0.1]
[1761945282350,22.15581522,186.96,186.95,0.1]
[1761945283848,12.36698753,186.96,186.95,0.1]
[1761945284144,22.15581522,186.96,186.95,0.1]
[1761945285135,9.78882769,186.95,186.94,10.68543076]
[1761945285455,9.78882769,186.95,186.91,0.1]
[1761945285456,20.592,186.92,186.91,0.1]
[1761945285657,33.45773155,186.92,186.91,0.1]
[1761945285856,34.17773155,186.92,186.91,0.1]
[1761945286366,33.45773155,186.92,186.91,0.1]
[1761945287970,28.10784925,186.92,186.91,0.1]
[1761945288146,27.82352611,186.92,186.91,0.1]
[1761945288341,27.82352611,186.92,186.91,0.76]
[1761945288538,33.17340841,186.92,186.91,0.1]
[1761945289667,29.81475415,186.92,186.91,0.1]
[1761945289837,7.23152611,186.92,186.91,0.1]
[1761945290166,12.58140841,186.92,186.91,0.1]
[1761945290658,3.87287185,186.92,186.91,0.76]
[1761945290864,7.23152611,186.92,186.91,0.1]
[1761945291765,7.23152611,186.92,186.91,0.76]
[1761945292147,12.58140841,186.92,186.91,0.1]
[1761945292352,7.23152611,186.92,186.91,0.1]
[1761945293660,12.58140841,186.92,186.91,0.1]
[1761945294044,3.87287185,186.92,186.91,0.76]
[1761945294271,7.23152611,186.92,186.91,0.76]
[1761945294844,3.87287185,186.92,186.91,0.76]
[1761945297448,7.23152611,186.92,186.91,0.76]
[1761945300244,7.95152611,186.92,186.91,0.1]
[1761945300466,13.58573155,186.92,186.91,0.1]
[1761945300863,8.23584925,186.92,186.91,0.1]
[1761945301069,3.87287185,186.92,186.91,0.78]
[1761945301453,3.87287185,186.92,186.91,4.13865426]
[1761945302378,3.87287185,186.92,186.91,9.48882279]
[1761945302760,3.87287185,186.92,186.91,19.27765048]
[1761945303975,3.35865426,187.03,186.91,22.92062788]
[1761945304162,3.90885723,187.02,186.98,3.35865426]
[1761945304477,3.90885723,187.01,186.98,3.35865426]
[1761945304649,3.90885723,187.0,186.99,0.68]
[1761945304858,3.90885723,187.0,186.99,4.03865426]
[1761945305067,3.90885723,187.0,186.99,9.38653382]
[1761945306070,3.90885723,187.0,186.99,0.68]
[1761945308284,3.90885723,187.0,186.92,15.13870999]
[1761945308590,8.3045976,187.01,186.99,0.68]
[1761945308881,3.9226343,187.0,186.99,0.68]
[1761945309264,3.9226343,187.0,186.99,8.9845976]
[1761945309588,3.9226343,187.0,186.99,14.33247716]
[1761945309755,3.9226343,187.0,186.99,24.12130485]
[1761945311270,82.28646771,187.07,187.0,9.78882769]
[1761945311470,3.92652336,187.06,187.03,8.3045976]
[1761945311771,3.92652336,187.05,187.03,8.3045976]
[1761945312087,82.28646771,187.07,187.04,8.9845976]
[1761945312390,3.92557568,187.06,187.05,0.68]
[1761945312559,3.92557568,187.06,187.05,18.77342529]
[1761945313383,3.92557568,187.06,187.05,24.11958941]
[1761945313684,3.92557568,187.06,187.05,14.33076172]
[1761945313881,3.92557568,187.06,187.05,24.11958941]
[1761945314292,0.2,187.13,187.06,9.78882769]
[1761945314466,3.91852298,187.12,187.08,8.3045976]
[1761945314666,3.91852298,187.11,187.08,8.3045976]
[1761945314886,3.91852298,187.1,187.09,0.68]
[1761945315080,0.2,187.13,187.09,0.68]
[1761945315081,3.91852298,187.12,187.09,8.9845976]
[1761945315296,9.78882769,187.21,187.09,8.9845976]
[1761945315297,0.72,187.23,187.12,5.34416417]
[1761945315498,12.22004,187.22,187.17,8.3045976]
[1761945315661,0.72,187.23,187.13,0.68]
[1761945315662,9.78882769,187.17,187.13,0.68]
[1761945315980,3.9154424,187.16,187.13,0.68]
[1761945316182,20.592,187.21,187.13,0.68]
[1761945316384,20.592,187.19,187.13,0.68]
[1761945316599,3.91104044,187.18,187.13,0.68]
[1761945317085,3.91104044,187.18,187.16,8.3045976]
[1761945317287,3.91104044,187.18,187.13,0.68]
[1761945317288,3.91104044,187.18,187.14,8.3045976]
[1761945317587,8.3045976,187.17,187.13,0.68]
[1761945317761,8.3045976,187.18,187.13,14.32845527]
[1761945317968,20.592,187.19,187.13,14.32845527]
[1761945318285,28.8965976,187.19,187.14,0.68]
[1761945318489,20.592,187.19,187.14,8.9845976]
[1761945318674,12.20560351,187.18,187.14,0.68]
[1761945318878,8.3045976,187.18,187.14,0.68]
[1761945319987,21.312,187.19,187.14,0.68]
[1761945320489,28.8965976,187.19,187.14,6.02349217]
[1761945320799,20.592,187.19,187.17,8.3045976]
[1761945320979,8.3045976,187.22,187.15,0.68]
[1761945321294,8.3045976,187.23,187.17,8.3045976]
[1761945321676,20.592,187.21,187.18,8.9845976]
[1761945322082,20.592,187.21,187.19,0.68]
[1761945322296,8.3045976,187.25,187.19,8.9845976]
[1761945322470,3.88961819,187.24,187.19,14.32674517]
[1761945322666,28.8965976,187.25,187.2,8.9645976]
[1761945322883,13.35748419,187.26,187.21,8.3045976]
[1761945323086,13.35748419,187.26,187.22,0.66]
[1761945323087,3.89001145,187.25,187.22,0.66]
[1761945323375,29.6065976,187.26,187.22,0.66]
[1761945323573,9.0145976,187.26,187.22,0.66]
[1761945323767,9.0145976,187.26,187.2,8.9645976]
[1761945324386,9.0145976,187.26,187.2,14.30647393]
[1761945324769,9.0145976,187.26,187.21,8.3045976]
[1761945324964,9.0145976,187.26,187.2,8.9645976]
[1761945324965,12.18803477,187.25,187.2,8.9645976]
[1761945325203,8.3045976,187.25,187.2,8.9645976]
[1761945325370,8.3045976,187.25,187.21,0.68]
[1761945326375,8.3045976,187.22,187.16,0.68]
[1761945326572,8.3045976,187.21,187.16,0.68]
[1761945326787,8.3045976,187.21,187.16,8.9845976]
[1761945327295,8.3045976,187.18,187.15,0.68]
[1761945329397,8.3045976,187.16,187.12,6.0241587]
[1761945329773,8.3045976,187.16,187.13,0.68]
[1761945330282,8.3045976,187.18,187.13,8.9845976]
[1761945330987,8.3045976,187.18,187.14,0.68]
[1761945332390,8.3045976,187.16,187.11,0.68]
[1761945332591,8.3045976,187.12,187.08,6.02526494]
[1761945332895,8.3045976,187.11,187.08,0.68]
[1761945333275,8.3045976,187.09,187.06,0.68]
[1761945333476,8.3045976,187.1,187.07,0.68]
[1761945333696,8.3045976,187.11,187.07,0.68]
[1761945335203,8.3045976,187.1,187.07,0.68]
[1761945336084,8.3045976,187.1,187.04,18.09342529]
[1761945336085,8.3045976,187.09,187.04,5.34641642]
[1761945336396,8.3045976,187.07,187.05,0.68]
[1761945338072,5.3443245,187.12,187.05,0.68]
[1761945338073,8.3045976,187.08,187.05,0.68]
[1761945338277,20.592,187.13,187.07,8.3045976]
[1761945338495,3.88732767,187.12,187.08,8.9845976]
[1761945338779,3.88732767,187.11,187.08,8.9845976]
[1761945338980,20.592,187.13,187.09,0.68]
[1761945339283,3.88731882,187.12,187.09,0.68]
[1761945339495,3.88731882,187.11,187.09,0.68]
[1761945339683,21.272,187.13,187.09,0.68]
[1761945339883,3.88893217,187.12,187.09,0.68]
[1761945340084,3.88893217,187.11,187.09,0.68]
[1761945340301,3.88893217,187.1,187.09,0.68]
[1761945340590,3.88893217,187.12,187.09,0.68]
[1761945340796,3.88893217,187.11,187.07,8.9845976]
[1761945340998,3.88893217,187.1,187.07,8.3045976]
[1761945341190,29.5765976,187.13,187.07,8.9845976]
[1761945341387,3.89291743,187.12,187.07,8.9845976]
[1761945341628,3.89291743,187.11,187.08,0.68]
[1761945341907,3.89291743,187.1,187.08,0.68]
[1761945342096,29.5765976,187.13,187.08,0.68]
[1761945342299,3.89434102,187.12,187.08,0.68]
[1761945342505,3.89434102,187.11,187.08,0.68]
[1761945342804,3.89434102,187.1,187.08,0.68]
[1761945342979,29.5765976,187.13,187.08,0.68]
[1761945343175,3.89504771,187.12,187.08,0.68]
[1761945343398,3.89504771,187.11,187.08,0.68]
[1761945343605,3.89504771,187.1,187.08,0.68]
[1761945343793,3.89504771,187.09,187.08,0.68]
[1761945344183,28.8965976,187.13,187.08,8.9845976]
[1761945344500,3.90104238,187.12,187.08,8.9845976]
[1761945344706,3.90104238,187.11,187.08,8.9845976]
[1761945344892,3.90104238,187.1,187.08,14.32978869]
[1761945345094,29.5765976,187.13,187.08,14.32978869]
[1761945345302,3.90125978,187.12,187.09,0.68]
[1761945345503,3.90125978,187.11,187.09,0.68]
[1761945345693,3.90125978,187.1,187.09,0.68]
[1761945346003,3.90125978,187.1,187.09,6.02502111]
[1761945346202,3.90490889,187.1,187.09,6.02502111]
[1761945346581,3.90490889,187.1,187.07,14.33001203]
[1761945346788,3.90519386,187.09,187.07,13.65001203]
[1761945346989,29.5765976,187.13,187.08,0.68]
[1761945347193,3.90557102,187.12,187.08,0.68]
[1761945347390,3.90557102,187.11,187.08,0.68]
[1761945347590,3.90557102,187.1,187.07,5.34541443]
[1761945347799,3.90557102,187.09,187.07,6.02541443]
[1761945347999,6.13919107,187.12,187.07,5.34541443]
[1761945348000,3.90557102,187.08,187.07,5.34541443]
[1761945348198,6.13919107,187.12,187.07,5.34541443]
[1761945348428,9.37076976,187.11,187.05,67.14605233]
[1761945348712,5.45919107,187.09,187.05,0.68]
[1761945349008,3.91157869,187.08,187.05,0.68]
[1761945349216,3.91157869,187.07,187.05,0.68]
[1761945349410,5.45919107,187.09,187.05,0.68]
[1761945349711,3.91362114,187.08,187.05,6.13919107]
[1761945350014,3.91362114,187.07,187.05,6.13919107]
[1761945350205,6.13919107,187.1,187.06,0.68]
[1761945350401,9.37568541,187.09,187.06,0.68]
[1761945350607,3.91649434,187.08,187.06,0.68]
[1761945350804,3.91649434,187.07,187.06,0.68]
[1761945353503,3.91649434,187.07,187.06,6.02587832]
[1761945354414,3.91649434,187.07,187.05,2.1446846]
[1761945354600,3.91649434,187.06,187.03,51.19716047]
[1761945354803,2.8246846,187.09,187.04,2.1446846]
[1761945355000,3.92575406,187.08,187.04,2.1446846]
[1761945355205,3.92575406,187.07,187.04,2.1446846]
[1761945355405,3.92575406,187.06,187.04,2.1446846]
[1761945355719,2.8246846,187.09,187.04,2.1446846]
[1761945356017,3.92743697,187.08,187.04,2.1446846]
[1761945356221,3.92743697,187.07,187.04,2.1446846]
[1761945356413,2.8246846,187.09,187.05,6.05616412]
[1761945356414,3.92743697,187.06,187.05,6.05616412]
[1761945357807,3.92743697,187.06,187.05,8.20084872]
[1761945358396,0.68,187.09,187.05,8.20084872]
[1761945358592,3.93057243,187.08,187.06,0.71]
[1761945358797,3.93057243,187.07,187.06,0.71]
[1761945358996,3.93057243,187.07,187.05,7.49084872]
[1761945359214,2.1446846,187.11,187.06,0.71]
[1761945359418,3.93099239,187.1,187.06,0.71]
[1761945359609,0.71,187.13,187.09,2.1446846]
[1761945359814,3.93120416,187.12,187.09,2.1446846]
[1761945360023,3.93120416,187.11,187.09,2.8546846]
[1761945360224,3.93120416,187.1,187.09,2.8546846]
[1761945360518,3.93120416,187.1,187.08,2.1446846]
[1761945360710,3.93120416,187.09,187.08,2.1446846]
[1761945360908,0.71,187.12,187.08,2.8546846]
[1761945361110,3.9327981,187.11,187.08,2.8546846]
[1761945361311,0.71,187.12,187.08,2.8546846]
[1761945361628,3.93340953,187.11,187.08,2.1446846]
[1761945361827,0.71,187.15,187.1,2.1446846]
[1761945362025,2.1446846,187.13,187.08,2.1446846]
[1761945362321,6.0782851,187.12,187.07,12.64351229]
[1761945362511,3.9336005,187.11,187.08,0.71]
[1761945362703,2.8546846,187.13,187.09,5.34502111]
[1761945362899,3.93302864,187.12,187.09,5.34502111]
[1761945363098,3.93302864,187.11,187.09,6.05502111]
[1761945363322,2.8546846,187.13,187.09,6.05502111]
[1761945363522,3.93326509,187.12,187.09,6.05502111]
[1761945363726,3.93326509,187.11,187.09,8.19970571]
[1761945363906,0.71,187.13,187.09,8.19970571]
[1761945364220,3.93334948,187.12,187.09,8.19970571]
[1761945364520,25.93482256,187.17,187.09,7.48970571]
[1761945364720,20.592,187.14,187.11,2.1446846]
[1761945364924,3.93293311,187.13,187.1,2.1446846]
[1761945365107,3.93288547,187.12,187.1,2.1446846]
[1761945365307,20.592,187.15,187.11,2.1446846]
[1761945365508,3.93311761,187.14,187.11,2.8546846]
[1761945365823,5.342463,187.18,187.12,2.8546846]
[1761945365824,2.1446846,187.17,187.12,2.8546846]
[1761945366032,3.93348105,187.16,187.13,2.1446846]
[1761945366218,3.93347952,187.15,187.13,2.1446846]
[1761945366522,2.1446846,187.19,187.14,2.8546846]
[1761945366523,0.71,187.19,187.14,2.8546846]
[1761945366728,3.93417096,187.18,187.15,2.1446846]
[1761945366909,3.93417096,187.17,187.14,8.19799822]
[1761945367227,21.302,187.19,187.15,0.71]
[1761945367416,4.64502314,187.18,187.15,2.1446846]
[1761945367731,2.1446846,187.16,187.08,40.68560306]
[1761945367898,2.1446846,187.13,187.08,0.71]
[1761945368104,3.9337603,187.12,187.08,5.34522863]
[1761945368332,3.93557619,187.11,187.08,5.34522863]
[1761945368507,0.71,187.12,187.08,5.34522863]
[1761945368712,3.93533584,187.11,187.08,5.34522863]
[1761945368923,0.71,187.12,187.08,5.34522863]
[1761945369129,3.93533622,187.11,187.08,5.34522863]
[1761945369322,0.71,187.12,187.08,5.34522863]
[1761945369505,3.93712239,187.11,187.08,5.34522863]
[1761945369823,13.35541428,187.19,187.1,2.1446846]
[1761945369824,23.4466846,187.17,187.1,2.1446846]
[1761945370014,3.93752701,187.16,187.12,2.1446846]
[1761945370217,20.592,187.14,187.12,2.1446846]
[1761945370418,3.93752701,187.13,187.12,2.1446846]
[1761945370616,3.93752701,187.13,187.12,11.93351229]
[1761945370843,3.93752701,187.13,187.12,17.27767646]
[1761945371128,20.592,187.17,187.12,17.98767646]
[1761945371298,3.93966468,187.16,187.14,2.1446846]
[1761945371499,3.93966468,187.15,187.14,2.1446846]
[1761945371703,3.93966468,187.15,187.14,2.8546846]
[1761945372536,3.93966468,187.15,187.12,15.13299186]
[1761945372842,0.71,187.17,187.14,2.1446846]
[1761945373131,3.94267794,187.16,187.14,2.1446846]
[1761945373329,3.94267794,187.16,187.13,2.1446846]
[1761945373330,3.94267794,187.15,187.13,2.1446846]
[1761945373519,3.94267794,187.14,187.13,2.1446846]
[1761945374235,3.94267794,187.14,187.13,7.48856318]
[1761945374727,4.65267794,187.14,187.09,13.36204009]
[1761945374912,3.94267794,187.13,187.1,2.8546846]
[1761945375231,3.94267794,187.12,187.11,2.1446846]
[1761945375836,3.94267794,187.12,187.11,2.8546846]
[1761945376410,3.94267794,187.12,187.11,8.19913438]
[1761945377234,3.94267794,187.12,187.11,7.48913438]
[1761945378433,3.94267794,187.12,187.1,2.1446846]
[1761945378640,3.94267794,187.11,187.1,2.1446846]